Cogmind - Beta 16 @@@ ROGUE MODE // 2026.01.03 @ 10:31:13 Player: PDX-G8 Result: Destroyed by D-53 Grenadier with Mini Grenade Launcher Performance ------------- Evolutions (0) 0 Regions Visited (2) 400 Robots Destroyed (27) 135 Value Destroyed (724) 724 Prototype IDs (0) 0 Alien Tech Used (0) 0 Bonus (16) 16 TOTAL SCORE: 1275 Bonus ------- High Alert Combat Kills 16 Cogmind --------- Core Integrity 0/250 Matter 170/300 Energy 100/100 System Corruption 0% Temperature Cool (0) Movement Flying (37) Location -10/Mines Parts ------- > --- POWER (1) -------- (None) > --- PROPULSION (2) --- Flight Unit Flight Unit > --- UTILITY (2) ------ Structural Scanner Improved Light Armor Plating > --- WEAPON (2) ------- Mini Grenade Launcher Mini Grenade Launcher > --- INVENTORY (5) ---- Ion Engine Aluminum Leg Hover Unit Improved Sensor Array Mini Grenade Launcher Peak State ------------ > --- POWER ------------ Ion Engine > --- PROPULSION ------- Aluminum Leg Aluminum Leg > --- UTILITY ---------- Improved Heat Sink Propulsion Shielding > --- WEAPON ----------- Mini Grenade Launcher Mini Grenade Launcher > --- INVENTORY -------- Ion Engine Hover Unit Light Assault Rifle Light Assault Rifle Mining Laser [Rating: 11] Favorites ----------- Power Ion Engine Engine Ion Engine Propulsion Aluminum Leg Leg Aluminum Leg Hover Unit Hover Unit Flight Unit Flight Unit Utility Structural Scanner Device Structural Scanner Protection Propulsion Shielding Weapon Mini Grenade Launcher Energy Gun Small Laser Ballistic Gun Light Assault Rifle Launcher Mini Grenade Launcher Build | -11 -10 -10 ------- Run | Yrd Mat Min Slots Evolved . | . . . Power . | . . . Propulsion . | . . . Utility . | . . . Weapon . | . . . Parts Attached 20 | 5 13 2 Power 1 | 1 . . Engine 1 | 1 . . Core . | . . . Reactor . | . . . Propulsion 6 | 2 3 1 Treads . | . . . Leg 3 | 2 1 . Wheel . | . . . Hover 1 | . 1 . Flight 2 | . 1 1 Utility 6 | . 5 1 Device 4 | . 4 . Storage . | . . . Processor . | . . . Hackware . | . . . Protection 2 | . 1 1 Artifact . | . . . Weapon 7 | 2 5 . Energy Gun 3 | 2 1 . Energy Cannon . | . . . Ballistic Gun 1 | . 1 . Ballistic Cannon . | . . . Launcher 3 | . 3 . Special Weapon . | . . . Impact Weapon . | . . . Slashing Weapon . | . . . Piercing Weapon . | . . . Special Melee Weapon . | . . . Unidentified Prototypes . | . . . Parts Lost 4 | . 4 . Power 1 | . 1 . Propulsion . | . . . Utility 2 | . 2 . Weapon 1 | . 1 . Highest Loss Streak 2 | . 2 . To Critical Strikes . | . . . Average Backups 4 | 1 4 5 Power . | . 1 1 Propulsion . | . . 2 Utility . | . . . Weapon 2 | . 2 1 Tool/Special . | . . . Unused Backups 5 | . 2 3 Power 1 | . . 1 Propulsion 1 | . 1 . Utility 1 | . . 1 Weapon 2 | . 1 1 Tool/Special . | . . . Average Slot Usage (%) 79 | . 80 75 Engine 5 | . 6 . Leg 20 | . 22 8 Hover 2 | . 3 . Flight 4 | . 2 19 Device 11 | . 11 14 Protection 5 | . 5 4 Energy Gun 7 | . 8 . Launcher 19 | . 18 28 Peak Build Rating 11 | 5 11 10 Average Rating 7 | 3 7 8 On Entrance 4 | . 5 7 Avg Prop Armor Cover (%) 16 | . 16 17 Naked Turns . | . . . Heaviest Build 10 | 8 10 6 Greatest Support 20 | 20 20 8 Greatest Overweight (x) 1 | 1 . . Average Overweight (x) . | . . . Largest Inventory Capacity 5 | 5 5 5 Average Capacity 5 | 5 5 5 Most Carried 5 | 2 5 5 Average Carried 4 | 1 4 4 Final Capacity 5 | 5 5 5 Final Carried 5 | 2 5 5 Class Distribution -------------------- 100% | Mutant Dominant Class ---------------- Mutant | -10/Materials Mutant | -10/Mines Resources | -11 -10 -10 ----------- Run | Yrd Mat Min Matter Collected 741 | 225 516 . Remotely . | . . . Salvage Created 637 | . 582 55 Parts 44 | . 40 4 Haulers Intercepted 2 | . 2 . Recyclers Shooed . | . . . Parts Field Recycled . | . . . Retrieved Matter . | . . . Parts Self-Destructed . | . . . Prevented . | . . . Parts Restored . | . . . Kills | -11 -10 -10 ------- Run | Yrd Mat Min Combat Hostiles Destroyed 34 | . 18 16 Guns 5 | . 5 . AOE 29 | . 13 16 Classes Destroyed 8 | . 6 2 Worker 1 | . 1 . Builder 1 | . . 1 Hauler 2 | . 2 . Operator 3 | . 3 . Watcher 1 | . 1 . Swarmer 3 | . 3 . Grunt 16 | . 15 1 Assembled 15 | . . 15 Best Kill Streak 17 | . 10 17 Combat Bots Only 16 | . 6 16 Max Kills in Single Turn 8 | . 3 8 Gunslinging . | . . . Exploded 8 | . 3 8 Melee . | . . . Uniques/NPCs Destroyed . | . . . Combat | -11 -10 -10 -------- Run | Yrd Mat Min Hostile Shots Fired 95 | . 86 9 Missed 30 | . 27 3 Hits 65 | . 59 6 Melee 1 | . . 1 Projectile 64 | . 59 5 AOE 2 | . . 2 Damage Taken 918 | . 753 165 Core 254 | . 178 76 Absorbed by Shields . | . . . Redirected to Shielding 50 | . 50 . Regen/Repaired (Parts) 37 | . 37 . Core Remaining (%) 100 | 100 . . Volleys Fired 48 | . 43 5 Largest 2 | . 2 2 Hottest 90 | . 90 60 Shots Fired 94 | . 84 10 Gun 52 | . 52 . Cannon . | . . . Launcher 42 | . 32 10 Special . | . . . Kinetic 1 | . 1 . Thermal 51 | . 51 . Explosive 42 | . 32 10 Electromagnetic . | . . . Robot Hit Streak 8 | . 8 3 Robot Miss Streak 3 | . 3 1 Penetration Max . | . . . Secondary Targets . | . . . Shots Hit Robots 53 | . 50 3 Core Hits 75 | . 41 34 Critical Kills . | . . . Critical Parts Destroyed . | . . . Critical Strikes 1 | . 1 . Burn 1 | . 1 . Melee Attacks . | . . . Impact . | . . . Slashing . | . . . Piercing . | . . . Sneak Attacks . | . . . Combat Hostiles . | . . . Follow-up Attacks . | . . . Damage Inflicted 2901 | . 1696 1205 Guns 454 | . 454 . Cannons . | . . . Explosions 2447 | . 1242 1205 Melee . | . . . Ramming . | . . . Kinetic 10 | . 10 . Thermal 444 | . 444 . Explosive 2447 | . 1242 1205 Electromagnetic . | . . . Impact . | . . . Slashing . | . . . Piercing . | . . . Highest Corruption . | . . . Average Corruption . | . . . Corruption Purged . | . . . Corruption Blocked . | . . . Overload Shots . | . . . Overflow Damage 87 | . 40 47 Projectiles . | . . . Explosions 87 | . 40 47 Melee . | . . . Knockbacks . | . . . Impact . | . . . Kinetic . | . . . Secondary . | . . . Self-Inflicted Damage 68 | . 61 7 Shots 4 | . 3 1 Rammed . | . . . Targets Rammed . | . . . Kicked . | . . . Crushed . | . . . Highest Temperature 412 | . 412 1 Average Temperature 146 | . 152 1 Received Heat Transfer 375 | . 375 . Effects 3 | . 3 . Shutdowns 1 | . 1 . Energy Bleed 1 | . 1 . Matter Decay 1 | . 1 . Siege Activations . | . . . Martial Activations . | . . . Shielding Activations . | . . . Robots Disrupted . | . . . Combat Hostiles . | . . . Robots Corrupted . | . . . Combat Hostiles . | . . . Parts Fried . | . . . Impact Corruptions . | . . . Robots Melted . | . . . Combat Hostiles . | . . . Parts Melted 2 | . 2 . Heat Transferred 1264 | . 1264 . Parts Sabotaged . | . . . Parts Stolen . | . . . Parts Stripped . | . . . Power Chain Reactions . | . . . Alert | -11 -10 -10 ------- Run | Yrd Mat Min Maximum Alert Level 2 | . 2 . Low Security (%) 58 | 100 51 100 Level 1 7 | . 8 . Level 2 33 | . 39 . Level 3 . | . . . Level 4 . | . . . Level 5 . | . . . High Security . | . . . Max Security . | . . . Peak Influence 493 | . 493 182 Initial 157 | . . 157 Average 206 | . 227 144 Influence Increases 848 | . 773 75 Destroy 0b10 Robot/C 380 | . 360 20 Destroy 0b10 Robot/NC 40 | . 35 5 Destroy Leader 76 | . 66 10 Successful Hack 8 | . 8 . Disable Machine 75 | . 75 . Destroy Structure 239 | . 199 40 Lose Combat Pursuer 30 | . 30 . Influence Decreases 666 | . 367 299 Entered New Map 249 | . . 249 Time Decay 377 | . 327 50 Lost Part 40 | . 40 . Squads Dispatched 5 | . 4 1 Investigation 3 | . 2 1 Extermination . | . . . Reinforcement 2 | . 2 . Assault . | . . . Garrison . | . . . Intercept . | . . . Searches Triggered . | . . . Construction Impeded . | . . . Haulers Reinforced . | . . . Active Scanning Responses . | . . . Cargo Convoy Interrupts . | . . . Stealth | -11 -10 -10 --------- Run | Yrd Mat Min Distress Signals 2 | . 2 . Communications Jammed . | . . . Distress Signals . | . . . Times Spotted 53 | . 30 23 Peak Tracking Total 20 | . 4 20 Tactical Retreats 3 | . 2 1 Traps | -11 -10 -10 ------- Run | Yrd Mat Min Traps Triggered 2 | . 2 . Indirectly . | . . . Trap Hack Attempts . | . . . Triggered . | . . . Disarmed . | . . . Reprogrammed . | . . . Reused . | . . . Traps Extracted . | . . . Installed . | . . . Triggered . | . . . Machines | -11 -10 -10 ---------- Run | Yrd Mat Min Machines Disabled 5 | . 5 . Max in Single Turn 2 | . 2 . Machines Repaired . | . . . Machines Dismantled . | . . . Machines Sabotaged . | . . . Overloaded Fab Kills . | . . . Hacking | -11 -10 -10 --------- Run | Yrd Mat Min Machines Accessed 8 | . 7 1 Terminals 5 | . 5 . Fabricators . | . . . Repair Stations 1 | . 1 . Recycling Units 1 | . 1 . Scanalyzers . | . . . Garrison Access . | . . . Total Hacks 17 | . 16 1 Successful 5 | . 4 1 Failed 12 | . 12 . Catastrophic 5 | . 5 . Database Lockouts . | . . . Manual 7 | . 7 . Terminals 11 | . 11 . Fabricators . | . . . Repair Stations 3 | . 3 . Recycling Units 2 | . 2 . Scanalyzers . | . . . Garrison Access . | . . . Terminal Hacks 1 | . . 1 Open Door 1 | . . 1 Fabricator Hacks . | . . . Repair Station Hacks 2 | . 2 . Scan Component 1 | . 1 . Repair 1 | . 1 . Recycling Unit Hacks 1 | . 1 . Report Inventory 1 | . 1 . Scanalyzer . | . . . Garrison Access Hacks . | . . . Unauthorized Hacks 1 | . 1 . Terminals . | . . . Fabricators . | . . . Repair Stations . | . . . Recycling Units 1 | . 1 . Monitor 1 | . 1 . Scanalyzers . | . . . Garrison Access . | . . . Data Cores Recovered . | . . . Used . | . . . Hacking Detections 7 | . 7 . Full Trace Events 3 | . 3 . Feedback Events . | . . . Feedback Blocked . | . . . Robot Schematics Acquired . | . . . Robots Built . | . . . Authchips . | . . . Time . | . . . Total Robot Build Rating . | . . . Part Schematics Acquired . | . . . Parts Built . | . . . Authchips . | . . . Time . | . . . Total Part Build Rating . | . . . Part Studies Acquired . | . . . Parts Repaired 1 | . 1 . Time 32 | . 32 . Parts Recycled . | . . . Recycled Matter . | . . . Retrieved Matter . | . . . Retrieved Components . | . . . Parts Scanalyzed . | . . . Part Schematics Acquired . | . . . Parts Damaged . | . . . Bothacking | -11 -10 -10 ------------ Run | Yrd Mat Min Used RIF Installer . | . . . Robots Hacked . | . . . Non-combat . | . . . Combat . | . . . Robot Hacks Applied . | . . . Relay Couplers Released . | . . . Fabnet Peak Effective % . | . . . Robots Rewired . | . . . Allies Hacked . | . . . Hacks Repelled . | . . . Allies | -11 -10 -10 -------- Run | Yrd Mat Min Total Allies . | . . . Largest Group . | . . . Highest-Rated Group . | . . . Highest-Rated Ally . | . . . Total Orders . | . . . Ally Attacks . | . . . Total Damage . | . . . Kills . | . . . Allies Corrupted . | . . . Allies Melted . | . . . Intel | -11 -10 -10 ------- Run | Yrd Mat Min Active Infowar (turns) 615 | . 511 104 Sensors 221 | . 221 . Structural 394 | . 290 104 Robot Analysis Total . | . . . Derelict Logs Recovered 1 | . . 1 Drone Launches . | . . . Drone Recoveries . | . . . Exploration | -11 -10 -10 ------------- Run | Yrd Mat Min Turns Passed 1029 | 55 870 104 Spaces Moved 1019 | 41 810 168 Core 7 | 6 1 . Treads . | . . . Legs 333 | 35 298 . Wheels . | . . . Hover 262 | . 262 . Flight 417 | . 249 168 Fastest Speed 37 | 50 50 37 Average Speed 77 | 113 82 46 Slowest Speed 120 | 120 120 50 Overloaded Moves . | . . . Propulsion Burnouts . | . . . Robots Hopped . | . . . Potential Cave-ins . | . . . Cave-ins Triggered . | . . . Exploration Rate (%) 49 | 4 97 47 Regions Visited 2 Branch Regions 1 Pre-discovered Areas . | . . . Known Exits Taken . | . . . Unknown Exits Taken 2 | 1 1 . Scrap Searched . | . . . Spaces Dug 37 | . . 37 Terrain Destroyed 328 | . 255 73 Melee . | . . . Projectile . | . . . AOE 328 | . 255 73 Terrain Rammed . | . . . Walls Destroyed . | . . . Machines Disabled . | . . . Actions | -11 -10 -10 --------- Run | Yrd Mat Min Total 1159 | 47 929 183 Wait 48 | . 42 6 Move 1017 | 40 809 168 Hop . | . . . Pick Up 12 | 2 9 1 Fast Attach 15 | 5 9 1 Attach 2 | . 2 . Detach 2 | . 2 . Swap 5 | . 4 1 Drop 10 | . 9 1 Fire 48 | . 43 5 Melee . | . . . Ram . | . . . Kick . | . . . Crush . | . . . Escape Stasis . | . . . Rewire . | . . . Trap . | . . . Miscellaneous . | . . . Route ------- -11/Scrapyard -10/Materials (discovered 4 exits: [*Mat x3] / *Min) -10/Mines (discovered 1 exit: [*Mat]) History --------- Turn | Location | Event 12 | -11/Scrapyard | Discovered new exit (range 16) 56 | -11/Scrapyard | Entered Materials 94 | -10/Materials | Discovered new exit (range 16) 279 | -10/Materials | Core integrity fell below 50% 303 | -10/Materials | Discovered new exit (range 13) 310 | -10/Materials | Build established: Mutant 562 | -10/Materials | Discovered new exit (range 11) 672 | -10/Materials | Discovered new exit (range 12) 886 | -10/Materials | Repaired Mni. Grenade Launcher? 926 | -10/Materials | Entered Mines 935 | -10/Mines | Discovered new exit (range 14) 950 | -10/Mines | Learned 2 Materials zone layouts 979 | -10/Mines | Met a Derelict bent on vengeance 988 | -10/Mines | Met a Derelict shopkeep closing up shop 998 | -10/Mines | Assembled infested the area 1017 | -10/Mines | Core integrity fell below 20% 1030 | -10/Mines | Destroyed by D-53 Grenadier with Mini Grenade Launcher Last Messages --------------- as-57061 destroyed. as-97871 destroyed. Destroyed Asb. Hover Unit. as-35658 destroyed. as-20318 destroyed. as-26124 destroyed. as-21829 destroyed. as-95964 destroyed. as-77287 destroyed. Destroyed Asb. Rifle. U-05 Engineer destroyed. as-97304 destroyed. as-97646 destroyed. Destroyed Asb. F-torch. as-03575 destroyed. [Achievement: Exterminator] The unstable cave ceiling collapses. G-34 Mercenary destroyed. C-45 Heavy ARC bursts open, deploying its payload. D-53 Grenadier unfolds itself. Map ----- +----------------------------------------------------+ | ?????????????????????????????????????????????????? | | ?????????????????????????????????????????????????? | | ?????????????????????????????????????????????????? | | ?????????????????????????????????????????????????? | | ?????????????????????????????????????????????????? | | ?????????????????????????????????????????????????? | | ?????????????????????????????????????????????????? | | ?????????????????????????????????????????????????? | | ?????????????????????????????????????????????????? | | ?????????????????????????????????????????????????? | | ?????????????????????????????????????????????????? | | ?????????????????????????????????????????????????? | | ?????????????????????????????????????????????????? | | ?????????????????????????????????????????????????? | | ?????????????????????????????????????????????????? | | ?????????????????????????????????????????????????? | | ?????????????????????????????????????????????????? | | ?????##########????????????????? ##??????????????? | | ?????##########????????????????? ##??????????????? | | ?????##""""""##????????????????? ## ?????????? | | ?????## ]!] !##??????????## ? ## ###?????????? | | ?????### | ###????????###### % ##?????????? | | ?????###! !###???????#### # d ##?????????? | | ???###### ####??????#### [d ###????????? | | ??##### X ####????### ##????????? | | ??### ########## @ ##????????? | | ??## ######## g ###????????? | | ??## ## # ##????????? | | ??### ## ????????? | | ??#### #### # ## ????????? | | ####### ### ##### ## ## ?????????? | | ####### ### ##### #### # ??????????? | | ## ###### ##### < ## ???????????? | | ## ###### ####??# ???????????? | | ## ###### ##?########???## % #??????????? | | ## ####### ##??######????### ##??????????? | | ##??#### ###?????????????## ###??????????? | | ## ##???########???????????????? ####??????????? | | ## ###???######??????????????????### ???????????? | | ## ####?????????????????????????????????????????? | | ## ####????????????????????????????????????????? | | ## ###????????????????????????????????????????? | | ## ###???????????????????????????????????????? | | ## ####??????????????????????????????????????? | | ## ###??????????????????????????????????????? | | # ##??????????????????????????????????????? | | ### ###??????????????????????????????????????? | | ########??????????????????? #####????????????? | | ##############????????????? ######### ??????### | | ##################?????????### #######?????### | +----------------------------------------------------+ Best States ------------- Heat Dissipation 39 Energy Generation 10 Energy Capacity 250 Matter Stores 300 Matter Capacity 300 Sight Range 16 Robot Scan Range 14 Terrain Scan Density 10 Armor Coverage 150 Propulsion Shielding 33 Evasion (%) 62 Item Schematics ----------------- None Robot Schematics ------------------ None Fabricated ------------ Nothing Repaired ---------- Mni. Grenade Launcher | 26% | -10/Materials Studied --------- None Alien Tech Used ----------------- None Achievements -------------- Exterminator Hunted Quick And Dirty Remodeling Challenges ------------ None Game ------ Seed VisualAbsorptionChainsword Manual? 0 Play Time 00:25:39 Cumulative 13.3 hours Start 2026.01.03 @ 10:05:34 End 2026.01.03 @ 10:31:13 Sessions 1 Manual Loads 0 Difficulty Rogue Special Mode None Game No. 11 Rogue 11 Adventurer 0 Explorer 0 Win Type - Total 0 Types 0/0/0/0/0/0/0/0/0/0 Lore% 9 Gallery% 9 Achievement% 12 Wizard Run 0 Options --------- Layout 0 ASCII 0 Keyboard 0 Movement Numpad Keybinds 0 Fullscreen 2 Font 18/SmallcapsGlow Map View 76x50 Zoom Use 0% Tactical HUD 0 Map Filters NONE Filters NONE Steam 1 RUN: 564cbfef-8c07-4e40-9a00-5492daa8bf87